Cogmind - Beta 10.2 @@@ ROGUE MODE // 2021.11.11 @ 03:03:59 Player: Saya Result: Self-destructed Performance ------------- Evolutions (3) 1500 Regions Visited (8) 1600 Robots Destroyed (133) 665 Value Destroyed (2938) 2938 Prototype IDs (4) 80 Alien Tech Used (0) 0 Bonus (-35) -35 TOTAL SCORE: 6748 Bonus ------- High Alert Combat Kills 90 Follower Combat Kills 33 Friendly Fire -158 Cogmind --------- Core Integrity 608/700 Matter 295/300 Energy 86/100 System Corruption 1% Temperature Cool (0) Movement Hovering (180) Ox2 Location -7/Factory Parts ------- > --- POWER (2) -------- (None) > --- PROPULSION (5) --- Gravmag System > --- UTILITY (4) ------ High-capacity Storage Unit Advanced Weight Redist. System Advanced Signal Interpreter Improved Medium Armor Plating > --- WEAPON (2) ------- Great Maul Katana > --- INVENTORY (12) --- Improved Heat Sink Improved Heat Sink Large Storage Unit High-capacity Storage Unit Enhanced Optical Array Advanced Sensor Array Advanced Sensor Array Advanced Terrain Scanner Hacking Suite Pulse Rifle Advanced EMP Blaster Great Axe Peak State ------------ > --- POWER ------------ Nuclear Core Nuclear Core > --- PROPULSION ------- Gravmag System Gravmag System Gravmag System Gravmag System Gravmag System > --- UTILITY ---------- Improved Heat Sink High-capacity Storage Unit Advanced Weight Redist. System Advanced Sensor Array > --- WEAPON ----------- Greatsword > --- INVENTORY -------- Improved Heat Sink Large Storage Unit High-capacity Storage Unit Advanced Sensor Array Advanced Signal Interpreter Advanced Terrain Scanner Insulated Plating Hacking Suite Pulse Rifle Advanced EMP Blaster Katana Great Axe [Rating: 47] Favorites ----------- Power Reinforced Ion Engine Engine Reinforced Ion Engine Power Core Nuclear Core Propulsion Armored Treads Treads Armored Treads Leg Aluminum Leg Hover Unit Gravmag System Utility High-capacity Storage Unit Device Improved Heat Sink Storage High-capacity Storage Unit Processor Advanced Signal Interpreter Protection Light Armor Plating Weapon Beam Cannon Energy Gun Beam Rifle Energy Cannon Beam Cannon Ballistic Gun Heavy Assault Rifle Ballistic Cannon Assault Cannon Launcher Rocket Launcher Impact Weapon Great Maul Slashing Weapon Katana Build | -11 -10 -10 -9 -9 -9 -8 -8 -7 ------- Run | Scr Mat Min Mat Min Exi Min Mat Fac Slots Evolved 6 | . . . 2 . . . 2 2 Power 1 | . . . . . . . . 1 Propulsion 3 | . . . 1 . . . 1 1 Utility 2 | . . . 1 . . . 1 . Weapon . | . . . . . . . . . Parts Attached 99 | . 17 . 27 3 2 . 28 22 Power 10 | . 3 . 5 . . . . 2 Engine 8 | . 3 . 5 . . . . . Core 2 | . . . . . . . . 2 Reactor . | . . . . . . . . . Propulsion 23 | . 3 . 7 . . . 7 6 Treads 15 | . 3 . 6 . . . 6 . Leg 2 | . . . 1 . . . 1 . Wheel . | . . . . . . . . . Hover 6 | . . . . . . . . 6 Flight . | . . . . . . . . . Utility 34 | . 5 . 8 . 2 . 9 10 Device 12 | . 1 . . . . . 6 5 Storage 8 | . 4 . . . 2 . 1 1 Processor 1 | . . . . . . . . 1 Hackware . | . . . . . . . . . Protection 13 | . . . 8 . . . 2 3 Artifact . | . . . . . . . . . Weapon 32 | . 6 . 7 3 . . 12 4 Energy Gun 12 | . . . 4 2 . . 6 . Energy Cannon 9 | . 5 . 1 . . . 3 . Ballistic Gun 2 | . . . 1 . . . 1 . Ballistic Cannon 3 | . 1 . 1 . . . 1 . Launcher 2 | . . . . 1 . . 1 . Special Weapon . | . . . . . . . . . Impact Weapon 1 | . . . . . . . . 1 Slashing Weapon 3 | . . . . . . . . 3 Piercing Weapon . | . . . . . . . . . Special Melee Weapon . | . . . . . . . . . Unidentified Prototypes 1 | . . . . . . . 1 . Parts Lost 16 | . 2 . 2 . . . 4 8 Power 2 | . . . . . . . . 2 Propulsion 5 | . . . . . . . 1 4 Utility 2 | . . . 1 . . . . 1 Weapon 7 | . 2 . 1 . . . 3 1 Highest Loss Streak 5 | . 2 . 1 . . . 1 5 Average Slot Usage (%) 98 | . 99 100 98 100 100 100 99 78 Engine 10 | . 14 14 10 11 11 11 9 1 Treads 29 | . 23 28 31 33 33 33 35 4 Leg 1 | . 4 . . . . . . . Hover 1 | . . . . . . . . 23 Device 3 | . 2 . . . . . 8 12 Storage 22 | . 25 28 22 22 22 22 23 9 Protection 5 | . . . 10 11 11 11 3 1 Energy Gun 9 | . 3 . 13 21 22 22 9 . Energy Cannon 7 | . 20 28 4 . . . 3 1 Ballistic Gun 2 | . 3 . 3 . . . 2 . Naked Turns . | . . . . . . . . . Heaviest Build 116 | 10 75 75 83 84 83 83 116 116 Greatest Support 80 | 20 40 40 60 60 60 60 80 80 Greatest Overweight (x) 2 | . 1 1 1 1 1 1 1 2 Average Overweight (x) . | . . 1 1 1 1 1 1 . Largest Inventory Capacity 28 | 6 20 20 20 20 20 20 28 28 Average Capacity 20 | 6 16 20 20 20 20 20 25 14 Most Carried 28 | 6 20 20 20 20 20 20 28 28 Average Carried 19 | 4 13 20 19 20 19 20 24 14 Final Capacity 28 | 6 20 20 20 20 20 20 28 12 Final Carried 28 | 4 20 20 20 20 20 20 28 12 Class Distribution -------------------- 86% | Hauler-Mutant 13% | Mutant Dominant Class ---------------- Mutant | -10/Materials Hauler-Mutant | -10/Mines Hauler-Mutant | -9/Materials Hauler-Mutant | -9/Mines Hauler-Mutant | -9/Exiles Hauler-Mutant | -8/Mines Hauler-Mutant | -8/Materials Mutant | -7/Factory Resources | -11 -10 -10 -9 -9 -9 -8 -8 -7 ----------- Run | Scr Mat Min Mat Min Exi Min Mat Fac Matter Collected 2150 | 208 205 . 857 116 . 28 468 268 Remotely 38 | . 38 . . . . . . . Salvage Created 4587 | 57 578 39 1800 226 . 82 1590 215 Parts 299 | . 59 5 112 13 . 9 85 16 Haulers Intercepted 15 | . 2 . 6 . . . 5 2 Recyclers Shooed 1 | . . . . . . . 1 . Parts Field Recycled . | . . . . . . . . . Retrieved Matter . | . . . . . . . . . Parts Self-Destructed . | . . . . . . . . . Prevented . | . . . . . . . . . Kills | -11 -10 -10 -9 -9 -9 -8 -8 -7 ------- Run | Scr Mat Min Mat Min Exi Min Mat Fac Combat Hostiles Destroyed 78 | . 15 . 25 5 . 4 26 3 Melee 3 | . . . . . . . . 3 Guns 34 | . 3 . 10 1 . 4 16 . Cannons 35 | . 12 . 15 . . . 8 . AOE 6 | . . . . 4 . . 2 . Classes Destroyed 14 | 1 7 1 2 . . . 2 1 Worker 15 | . 2 1 7 1 . . 4 . Builder 3 | . 1 . 2 . . . . . Tunneler 4 | . . 1 1 . . 1 . 1 Hauler 15 | . 2 . 6 . . . 5 2 Recycler 5 | 1 . . 2 2 . . . . Operator 2 | . 1 . 1 . . . . . Watcher 11 | . 3 . 5 . . . 3 . Swarmer 26 | . 9 . 3 4 . 4 4 2 Grunt 31 | . 6 . 11 . . . 14 . Brawler 1 | . . . 1 . . . . . Duelist 1 | . . . . . . . 1 . Sentry 17 | . . . 10 1 . . 6 . Hunter 1 | . . . . . . . 1 . Programmer 1 | . . . . . . . . 1 Best Kill Streak 6 | 1 5 1 5 6 . 4 6 2 Combat Bots Only 6 | . 5 . 3 4 . 4 6 2 Max Kills in Single Turn 2 | 1 2 1 1 2 . 2 2 1 Gunslinging 1 | . . . . . . 1 . . Exploded 2 | . . . . 2 . . 2 . Melee 1 | . . . . . . . . 1 Uniques/NPCs Destroyed . | . . . . . . . . . Combat | -11 -10 -10 -9 -9 -9 -8 -8 -7 -------- Run | Scr Mat Min Mat Min Exi Min Mat Fac Damage Taken 5253 | . 552 56 1464 200 . 65 1969 947 Core 470 | . 82 13 152 . . . 131 92 Absorbed by Shields . | . . . . . . . . . Core Remaining (%) 75 | 100 . 62 . . . 62 76 . Volleys Fired 318 | 8 46 5 133 10 . 5 111 . Largest 2 | 2 2 2 2 2 . 2 2 . Hottest 120 | 70 120 120 120 101 . 101 112 . Shots Fired 612 | 16 85 10 265 16 . 10 210 . Gun 362 | 16 16 . 146 13 . 10 161 . Cannon 247 | . 69 10 119 . . . 49 . Launcher 3 | . . . . 3 . . . . Special . | . . . . . . . . . Kinetic 208 | 8 16 . 114 . . . 70 . Thermal 336 | 8 69 10 150 7 . 5 87 . Explosive 3 | . . . . 3 . . . . Electromagnetic 65 | . . . 1 6 . 5 53 . Robot Hit Streak 24 | 6 12 5 24 3 . 4 19 . Robot Miss Streak 5 | 2 2 2 5 3 . 2 3 . Penetration Max . | . . . . . . . . . Secondary Targets 4 | . 2 . . . . 1 1 . Max Gunslinging Chain 1 | . 1 . . . . 1 1 . Shots Hit Robots 419 | 13 49 6 168 9 . 6 148 20 Core Hits 185 | 2 27 2 66 10 . 5 65 8 Critical Hits 4 | . . . 2 . . . 1 1 Critical Kills 2 | . . . 1 . . . . 1 Critical Parts Destroyed 1 | . . . . . . . 1 . Melee Attacks 33 | . . . . . . . . 33 Impact 5 | . . . . . . . . 5 Slashing 28 | . . . . . . . . 28 Piercing . | . . . . . . . . . Sneak Attacks 3 | . . . . . . . . 3 Combat Hostiles . | . . . . . . . . . Follow-up Attacks 2 | . . . . . . . . 2 Damage Inflicted 8526 | 133 895 140 2703 586 . 82 2958 1029 Guns 3676 | 133 129 . 1382 118 . 82 1832 . Cannons 3022 | . 766 140 1321 . . . 795 . Explosions 793 | . . . . 468 . . 325 . Melee 1029 | . . . . . . . . 1029 Ramming 6 | . . . . . . . 6 . Kinetic 2427 | 44 126 . 1268 . . . 989 . Thermal 3828 | 89 769 140 1420 91 . 43 1276 . Explosive 421 | . . . . 421 . . . . Electromagnetic 815 | . . . 15 74 . 39 687 . Impact 71 | . . . . . . . . 71 Slashing 958 | . . . . . . . . 958 Piercing . | . . . . . . . . . Highest Corruption 3 | . . . 3 3 3 3 . 1 Average Corruption 2 | . . . 3 3 3 3 . 1 Corruption Purged . | . . . . . . . . . Effects 68 | . . . 49 11 6 2 . . Message Errors 14 | . . . 11 1 1 1 . . Matter Fused 10 | . . . 4 5 1 . . . Heat Flow Errors 17 | . . . 13 1 3 . . . Energy Discharges 4 | . . . 4 . . . . . Data Loss (minor) 12 | . . . 10 1 1 . . . Targeting Errors 10 | . . . 7 2 . 1 . . Weapon Failures 1 | . . . . 1 . . . . Overload Shots . | . . . . . . . . . Overflow Damage 159 | . . . 12 17 . . 9 121 Projectiles 13 | . . . 12 . . . 1 . Explosions 25 | . . . . 17 . . 8 . Melee 121 | . . . . . . . . 121 Knockbacks 12 | . 1 . 4 . . . 7 . Impact . | . . . . . . . . . Kinetic 11 | . 1 . 3 . . . 7 . Secondary 1 | . . . 1 . . . . . Self-Inflicted Damage 146 | . . . . 104 . . 42 . Shots 5 | . . . . 3 . . 2 . Rammed 1 | . . . . . . . 1 . Targets Rammed 1 | . . . . . . . 1 . Kicked . | . . . . . . . . . Crushed . | . . . . . . . . . Highest Temperature 354 | 120 300 120 354 275 254 153 282 . Average Temperature 104 | 63 109 56 119 97 99 68 59 . Received Heat Transfer 1482 | . 66 . 498 18 . . 900 . Effects 12 | . 5 . 6 . . . 1 . Energy Bleed 4 | . . . 3 . . . 1 . Interference 7 | . 5 . 2 . . . . . Damage (minor) 1 | . . . 1 . . . . . Siege Activations . | . . . . . . . . . Robots Corrupted . | . . . . . . . . . Combat Hostiles . | . . . . . . . . . Parts Fried 4 | . . . . . . . 4 . Impact Corruptions . | . . . . . . . . . Robots Melted . | . . . . . . . . . Combat Hostiles . | . . . . . . . . . Parts Melted 12 | . . 1 8 . . . 3 . Heat Transferred 8281 | 259 1702 296 3256 161 . 111 2496 . Parts Sabotaged . | . . . . . . . . . Parts Stolen . | . . . . . . . . . Parts Stripped . | . . . . . . . . . Power Chain Reactions 6 | . . . . 2 . . 4 . Missiles Intercepted . | . . . . . . . . . Alert | -11 -10 -10 -9 -9 -9 -8 -8 -7 ------- Run | Scr Mat Min Mat Min Exi Min Mat Fac Peak Influence 544 | 5 328 54 544 323 . 95 377 300 Initial 172 | . 3 49 1 172 . . 37 149 Average 200 | 1 135 29 339 239 . 32 144 161 Maximum Alert Level 2 | . 1 . 2 1 . . 1 1 Low Security (%) 58 | 100 67 100 27 42 . 100 70 78 Level 1 19 | . 32 . 5 57 . . 29 21 Level 2 21 | . . . 66 . . . . . Level 3 . | . . . . . . . . . Level 4 . | . . . . . . . . . Level 5 . | . . . . . . . . . High Security . | . . . . . . . . . Max Security . | . . . . . . . . . Squads Dispatched 13 | . 3 . 3 . . . 1 6 Investigation 2 | . 1 . . . . . 1 . Extermination 2 | . . . . . . . . 2 Reinforcement 6 | . 2 . 3 . . . . 1 Assault . | . . . . . . . . . Garrison 3 | . . . . . . . . 3 Intercept . | . . . . . . . . . Construction Impeded . | . . . . . . . . . Haulers Reinforced . | . . . . . . . . . Stealth | -11 -10 -10 -9 -9 -9 -8 -8 -7 --------- Run | Scr Mat Min Mat Min Exi Min Mat Fac Distress Signals 12 | . 2 . 6 . . . 2 2 Communications Jammed . | . . . . . . . . . Distress Signals . | . . . . . . . . . Times Spotted 136 | . 23 3 53 5 . 4 36 12 Peak Tracking Total 9 | . 7 3 9 4 . 4 7 5 Tactical Retreats 6 | . 1 . 3 . . . 1 1 Traps | -11 -10 -10 -9 -9 -9 -8 -8 -7 ------- Run | Scr Mat Min Mat Min Exi Min Mat Fac Traps Triggered 6 | . 1 . . . . . 1 4 Indirectly . | . . . . . . . . . Trap Hack Attempts . | . . . . . . . . . Triggered . | . . . . . . . . . Disarmed . | . . . . . . . . . Reprogrammed . | . . . . . . . . . Reused . | . . . . . . . . . Traps Extracted . | . . . . . . . . . Installed . | . . . . . . . . . Triggered . | . . . . . . . . . Machines | -11 -10 -10 -9 -9 -9 -8 -8 -7 ---------- Run | Scr Mat Min Mat Min Exi Min Mat Fac Machines Disabled 7 | . 2 . 3 1 . . 1 . Max in Single Turn 1 | . 1 . 1 . . . 1 . Garrison Access 1 | . . . . . . . 1 . Machines Sabotaged . | . . . . . . . . . Garrisons Compromised . | . . . . . . . . . Overloaded Fab Kills . | . . . . . . . . . Fab Network Shutdowns . | . . . . . . . . . Hacking | -11 -10 -10 -9 -9 -9 -8 -8 -7 --------- Run | Scr Mat Min Mat Min Exi Min Mat Fac Machines Accessed 25 | . 5 . 6 . 1 . 10 3 Terminals 15 | . 4 . 3 . . . 7 1 Fabricators 1 | . . . . . . . . 1 Repair Stations 5 | . 1 . 2 . . . 1 1 Recycling Units . | . . . . . . . . . Scanalyzers 2 | . . . 1 . . . 1 . Garrison Access 1 | . . . . . . . 1 . Total Hacks 108 | . 15 . 53 . 1 . 34 5 Successful 80 | . 7 . 48 . 1 . 21 3 Failed 28 | . 8 . 5 . . . 13 2 Catastrophic 2 | . . . . . . . 1 1 Database Lockouts . | . . . . . . . . . Manual 22 | . 6 . 2 . . . 12 2 Terminals 47 | . 13 . 7 . . . 25 2 Fabricators 2 | . . . . . . . . 2 Repair Stations 19 | . 2 . 14 . . . 2 1 Recycling Units . | . . . . . . . . . Scanalyzers 38 | . . . 32 . . . 6 . Garrison Access 1 | . . . . . . . 1 . Terminal Hacks 18 | . 3 . 4 . 1 . 10 . Record 1 | . . . . . 1 . . . Prototype ID Bank 2 | . . . 1 . . . 1 . Level Access Points 1 | . . . . . . . 1 . Branch Access Points 2 | . . . 1 . . . 1 . Locate Traps 3 | . 1 . 1 . . . 1 . Transport Status 1 | . . . . . . . 1 . Hauler Manifests 2 | . 1 . . . . . 1 . Registered Components 2 | . 1 . . . . . 1 . Zone Layout 4 | . . . 1 . . . 3 . Fabricator Hacks 2 | . . . . . . . . 2 Load Schematic 1 | . . . . . . . . 1 Build 1 | . . . . . . . . 1 Repair Station Hacks 15 | . 2 . 12 . . . 1 . Scan Component 8 | . 1 . 6 . . . 1 . Repair 7 | . 1 . 6 . . . . . Recycling Unit Hacks . | . . . . . . . . . Scanalyzer 37 | . . . 31 . . . 6 . Insert Component 17 | . . . 14 . . . 3 . Analyze 20 | . . . 17 . . . 3 . Garrison Access Hacks 1 | . . . . . . . 1 . Seal Access 1 | . . . . . . . 1 . Unauthorized Hacks 7 | . 2 . 1 . . . 3 1 Terminals 7 | . 2 . 1 . . . 3 1 Botnet 7 | . 2 . 1 . . . 3 1 Fabricators . | . . . . . . . . . Repair Stations . | . . . . . . . . . Recycling Units . | . . . . . . . . . Scanalyzers . | . . . . . . . . . Garrison Access . | . . . . . . . . . Data Cores Recovered . | . . . . . . . . . Used . | . . . . . . . . . Hacking Detections 21 | . 5 . 6 . . . 8 2 Full Trace Events . | . . . . . . . . . Feedback Events . | . . . . . . . . . Feedback Blocked . | . . . . . . . . . Robot Schematics Acquired . | . . . . . . . . . Robots Built . | . . . . . . . . . Matter . | . . . . . . . . . Time . | . . . . . . . . . Total Robot Build Rating . | . . . . . . . . . Part Schematics Acquired 16 | . . . 13 . . . 3 . Parts Built 2 | . . . . . . . . 2 Matter 146 | . . . . . . . . 146 Time 73 | . . . . . . . . 73 Total Part Build Rating 6 | . . . . . . . . 6 Parts Repaired 7 | . 1 . 6 . . . . . Time 224 | . 26 . 198 . . . . . Parts Recycled . | . . . . . . . . . Recycled Matter . | . . . . . . . . . Retrieved Matter . | . . . . . . . . . Retrieved Components . | . . . . . . . . . Parts Scanalyzed 16 | . . . 13 . . . 3 . Part Schematics Acquired 16 | . . . 13 . . . 3 . Parts Damaged . | . . . . . . . . . Bothacking | -11 -10 -10 -9 -9 -9 -8 -8 -7 ------------ Run | Scr Mat Min Mat Min Exi Min Mat Fac Used RIF Installer . | . . . . . . . . . Robots Hacked . | . . . . . . . . . Non-combat . | . . . . . . . . . Combat . | . . . . . . . . . Robot Hacks Applied . | . . . . . . . . . Relay Couplers Released . | . . . . . . . . . Robots Rewired . | . . . . . . . . . Allies Hacked . | . . . . . . . . . Hacks Repelled . | . . . . . . . . . Allies | -11 -10 -10 -9 -9 -9 -8 -8 -7 -------- Run | Scr Mat Min Mat Min Exi Min Mat Fac Total Allies 3 | . . . . 3 . . . . Largest Group 3 | . . . . 3 . . . . Highest-Rated Group 40 | . . . . 40 . . . . Highest-Rated Ally 16 | . . . . 16 . . . . Total Orders . | . . . . . . . . . Ally Attacks 12 | . . . . 12 . . . . Total Damage 147 | . . . . 147 . . . . Kills 1 | . . . . 1 . . . . Allies Corrupted . | . . . . . . . . . Allies Melted . | . . . . . . . . . Intel | -11 -10 -10 -9 -9 -9 -8 -8 -7 ------- Run | Scr Mat Min Mat Min Exi Min Mat Fac Robot Analysis Total . | . . . . . . . . . Derelict Logs Recovered 5 | . . 2 . 3 . . . . Drone Launches . | . . . . . . . . . Drone Recoveries . | . . . . . . . . . Exploration | -11 -10 -10 -9 -9 -9 -8 -8 -7 ------------- Run | Scr Mat Min Mat Min Exi Min Mat Fac Turns Passed 9780 | 37 1580 781 2990 494 605 179 2510 604 Spaces Moved 4735 | 12 794 324 1206 241 316 87 1133 622 Core . | . . . . . . . . . Treads 3986 | . 635 324 1206 241 316 87 1133 44 Legs 171 | 12 159 . . . . . . . Wheels . | . . . . . . . . . Hover 578 | . . . . . . . . 578 Flight . | . . . . . . . . . Fastest Speed 44 | 120 120 180 180 190 190 190 183 44 Average Speed 167 | 120 165 180 188 190 190 190 188 64 Slowest Speed 190 | 120 180 180 190 190 190 190 190 185 Overloaded Moves . | . . . . . . . . . Propulsion Burnouts . | . . . . . . . . . Robots Hopped . | . . . . . . . . . Cave-ins Triggered . | . . . . . . . . . Exploration Rate (%) 56 | 3 96 87 96 36 66 33 76 17 Regions Visited 8 Branch Regions 4 Pre-discovered Areas 2 | . . . . 1 1 . . . Known Exits Taken 2 | . . . 1 . . . 1 . Unknown Exits Taken 6 | 1 1 1 . 1 1 1 . . Scrap Searched 2 | . . 1 . 1 . . . . Spaces Dug . | . . . . . . . . . Terrain Destroyed 57 | . . . . 45 . . 12 . Melee . | . . . . . . . . . Projectile . | . . . . . . . . . AOE 57 | . . . . 45 . . 12 . Terrain Rammed . | . . . . . . . . . Walls Destroyed . | . . . . . . . . . Machines Disabled . | . . . . . . . . . Actions | -11 -10 -10 -9 -9 -9 -8 -8 -7 --------- Run | Scr Mat Min Mat Min Exi Min Mat Fac Total 5957 | 21 980 512 1670 260 323 91 1330 770 Wait 570 | . 86 184 260 6 . . 2 32 Move 4727 | 11 793 323 1205 240 315 86 1132 622 Hop . | . . . . . . . . . Pick Up 69 | . 24 . 16 . 2 . 24 3 Fast Attach 24 | . 3 . 10 . . . 8 3 Attach 25 | . 6 . 3 . . . 5 11 Detach 1 | . . . . . . . . 1 Swap 50 | . 8 . 14 3 2 . 15 8 Drop 102 | 2 14 . 29 1 4 . 32 20 Fire 318 | 8 46 5 133 10 . 5 111 . Melee 31 | . . . . . . . . 31 Ram . | . . . . . . . . . Kick . | . . . . . . . . . Crush 1 | . . . . . . . 1 . Escape Stasis 39 | . . . . . . . . 39 Rewire . | . . . . . . . . . Trap . | . . . . . . . . . Miscellaneous . | . . . . . . . . . Route ------- -11/Scrapyard -10/Materials (discovered 5 exits: *Mat x3 / [*Min x2]) -10/Mines (discovered 2 exits: *Mat x2) -9/Materials (discovered 6 exits: *Mat x3 / *Min / *Sto x2) -9/Mines (discovered 2 exits: *Mat / *Exi) -9/Exiles -8/Mines -8/Materials (discovered 3 exits: *Fac x3) -7/Factory (discovered 1 exit: [*Fac]) History --------- Turn | Location | Event 1 | -11/Scrapyard | Discovered new exit (range 3) 38 | -11/Scrapyard | Entered Materials 319 | -10/Materials | Build established: Mutant 605 | -10/Materials | Discovered new exit (range 14) 738 | -10/Materials | Repaired Lgt. Treads 943 | -10/Materials | Discovered new exit (range 10) 1152 | -10/Materials | Build established: Hauler-Mutant 1206 | -10/Materials | Discovered new exit (range 16) 1381 | -10/Materials | Discovered new exit (range 13) 1591 | -10/Materials | Discovered new exit (range 5) 1618 | -10/Materials | Entered Mines 1725 | -10/Mines | Assembled infested the area 1730 | -10/Mines | Assisted by a Guerilla fighting off Assembled 2060 | -10/Mines | Learned location of 1 exit from Materials 2067 | -10/Mines | Learned Materials trap positions 2213 | -10/Mines | Discovered new exit (range 11) 2384 | -10/Mines | Discovered new exit (range 6) 2399 | -10/Mines | Entered Materials 2399 | -9/Materials | Evolved 2 slots: Propulsion x1, Utility x1 2400 | -9/Materials | Identified exit to Storage 2401 | -9/Materials | Loaded intel: 11 trap records 2708 | -9/Materials | Discovered new exit (range 10) 2912 | -9/Materials | Discovered exit to Storage (range 12) 3006 | -9/Materials | Identified exit to Mines 3659 | -9/Materials | Discovered new exit (range 12) 3929 | -9/Materials | Repaired Lgt. Armor Plating 3969 | -9/Materials | Repaired Arm. Treads 3996 | -9/Materials | Repaired Beam Cannon 4035 | -9/Materials | Repaired Arm. Treads 4384 | -9/Materials | Repaired Rnf. Ion Engine 4424 | -9/Materials | Repaired Arm. Treads 4948 | -9/Materials | Discovered new exit (range 16) 5389 | -9/Materials | Entered Mines 5458 | -9/Mines | Learned Materials non-interactive machine intel 5475 | -9/Mines | Assisted by bots powering up and referring to "LRC-V3" 5559 | -9/Mines | Discovered new exit (range 10) 5614 | -9/Mines | Deemed a non-threat by the Exiles lab entrance 5652 | -9/Mines | Learned 4 Materials zone layouts 5671 | -9/Mines | Learned location of Storage (-9) 5875 | -9/Mines | Discovered new exit (range 5) 5883 | -9/Mines | Entered Exiles 5931 | -9/Exiles | Met 8R-AWN 5961 | -9/Exiles | Met EX-HEX 6037 | -9/Exiles | Met EX-DEC 6045 | -9/Exiles | Learned location of Zion (-6) 6154 | -9/Exiles | Visited The Gauntlet 6467 | -9/Exiles | Discovered new exit (range 12) 6488 | -9/Exiles | Entered Mines 6646 | -8/Mines | Discovered new exit (range 10) 6667 | -8/Mines | Entered Materials 6667 | -8/Materials | Evolved 2 slots: Propulsion x1, Utility x1 6668 | -8/Materials | Identified exit to Factory 6669 | -8/Materials | Loaded intel: 42 non-interactive machine locations 9177 | -8/Materials | Entered Factory 9177 | -7/Factory | Evolved 2 slots: Power x1, Propulsion x1 9414 | -7/Factory | Discovered new exit (range 9) 9491 | -7/Factory | Garrison activated, responded to threat 9546 | -7/Factory | Lost 5 parts (1p2n1u1w) 9565 | -7/Factory | Build established: Mutant 9756 | -7/Factory | Fabricated Nuclear Core? 9781 | -7/Factory | Self-destructed Last Messages --------------- 09683_ K-01 Serf cleans the Fusion Modulator. 09698_ W-25 Informer sends out distress signal. 09700_ Acquired Great Maul. 09707_ Slug penetrates Wall. 09733_ K-01 Serf cleans the Subcomponent Replicator. 09735_ Slug penetrates Wall. 09735_ Gravmag System destroyed. 09742_ K-01 Serf cleans the Subcomponent Replicator. 09756_ >> FABRICATOR: Completed Nuclear Core? 09759_ Penetrated by Slug. 09759_ Katana follow-up attack on H-55 Commando. 09761_ K-01 Serf cleans the Subcomponent Replicator. 09762_ Penetrated by Slug. 09764_ K-01 Serf cleans the Subcomponent Replicator. 09768_ Penetrated by Slug. 09769_ Gravmag System destroyed. 09774_ Penetrated by Slug. 09775_ Katana follow-up attack on H-55 Commando. 09777_ Nuclear Core destroyed. 09781_ K-01 Serf cleans the Subcomponent Replicator. Map ----- +----------------------------------------------------+ | ????????###+##### !""" * #? | | ????????# # !!!%=!###? | | ????????# """ # ""Y"" !#??? | | ????????# ""R" # """"" #???"" | | ????????# "" " # #?# "" | | ????????# + + "S | | ????????# #### ######### "" | | ????????# """"" #### ###??????? " | | ????????# """"" ## ] #????????? | | ????????# """ ## ########## | | ????????# ## | | ????????# ## ########## | | ?????????######### # # | | ?????????????????## ## # | | ?????????????###### ## # | | ?????????????# ## # | | ?????????????# / + | | ???????#+#???# ## # | | ######## #???# ###### # | | # !# #???# #????# # | | #] "" # #???# #????# # | | # "" # #???# #????########## | | # """ # ##### #?????????????? | | # """ # #?????????????? | | # """ # #?????????????? | | #! p /@ h #?????????????? | | # "" # #?????######### | | # "" ### #?????# | | # k""" #?# #?????#! | | # """ #?# ####### | | # """ #?# #### + """ | | #! #?# #??########### """ | | ########?# #????????????# """ | | ?????????# #????????????# "" | | ?????????# ?????????????# "" | | ????????? ?????????????# ! ! | | ?????????# ?????????????######### | | ?????????# ?????????????????????? | | ?????????? ?????????????????????? | | ?????????? ?????????????????????? | | ?????????? ?????????????????????? | | ???????????????????????????????? | | ???????????????????????????????? | | ???????????????????????????????? | | ???????????????????????????????# | | ???????????????????????????????# | | ????????????????????????????????# | | ????????????????????????????????? | | ????????????????????????????????? | | ????????????????????????????????? | +----------------------------------------------------+ Best States ------------- Heat Dissipation 48 Energy Generation 23 Energy Capacity 380 Matter Stores 300 Matter Capacity 300 Sight Range 16 Robot Scan Range 16 Terrain Scan Density 10 Additional Mass Support 9 Armor Coverage 225 Resistance: EM 15 Evasion (%) 56 Recoil Reduction 4 Item Schematics ----------------- Med. Storage Unit | -9/Materials | Scanalyzed Hacking Suite | -9/Materials | Scanalyzed Grenade Launcher | -9/Materials | Scanalyzed Adv. Sensor Array | -9/Materials | Scanalyzed Signal Interpreter | -9/Materials | Scanalyzed Lrg. Storage Unit | -9/Materials | Scanalyzed Visual Processing Unit | -9/Materials | Scanalyzed Arm. Treads | -9/Materials | Scanalyzed Imp. Targeting Computer | -9/Materials | Scanalyzed Sml. Matter Pod | -9/Materials | Scanalyzed Beam Cannon | -9/Materials | Scanalyzed Lgt. Cannon | -9/Materials | Scanalyzed ECM Suite | -9/Materials | Scanalyzed Nuclear Core | -8/Materials | Scanalyzed Imp. Heat Sink | -8/Materials | Scanalyzed Rocket Launcher | -8/Materials | Scanalyzed Robot Schematics ------------------ None Fabricated ------------ Nuclear Core | x2 | -7/Factory Alien Tech Used ----------------- None Achievements -------------- None Challenges ------------ None Game ------ Seed CompositeGatlingImmobilizer Manual? 0 Play Time 00:47:20 Cumulative 177.8 hours Start 2021.11.11 @ 02:18:59 End 2021.11.11 @ 03:03:59 Sessions 1 Manual Loads 0 Difficulty Rogue Special Mode None Game No. 235 Rogue 154 Adventurer 0 Explorer 81 Win Type - Total 38 Types 26/2/4/3/2/0/0/1/0 Lore% 90 Gallery% 86 Achievement% 63 Wizard Run 0 Options --------- ASCII 0 Keyboard 0 Movement Numpad Keybinds 1 Fullscreen 2 Font 18/X11 Map View 76x50 Tactical HUD 1 Map Filters NONE Filters NONE Steam 1 RUN: 80d21752-f900-4595-83ab-14c2ce5856c5